bitfinex/quotes_ETHUSD_20240915
["timestamp","ask_amount","ask_price","bid_price","bid_amount"]
[1726392288959,0.03117267,2419.6,2419.5,15.14976125]
[1726392289159,0.03117267,2419.6,2419.5,16.88605266]
[1726392289398,0.03117267,2419.6,2419.5,15.14976125]
[1726392289901,0.03117267,2419.6,2419.5,17.31987029]
[1726392290197,0.03117267,2419.6,2419.5,15.14976125]
[1726392290366,0.03117267,2419.6,2419.5,16.88607685]
[1726392290573,0.03117267,2419.6,2419.5,16.88610098]
[1726392290762,0.03117267,2419.6,2419.5,13.59951923]
[1726392291281,0.03117267,2419.6,2419.5,16.7240223]
[1726392291453,0.03117267,2419.6,2419.5,17.32027922]
[1726392292795,0.03117267,2419.6,2419.5,17.32054022]
[1726392293674,0.03117267,2419.6,2419.5,15.80352076]
[1726392294604,0.03117267,2419.6,2419.5,15.20726229]
[1726392294811,0.03117267,2419.6,2419.5,15.80351824]
[1726392295707,0.03117267,2419.6,2419.5,15.80401905]
[1726392297143,0.03117267,2419.6,2419.5,16.99653096]
[1726392300551,0.03117267,2419.6,2419.5,16.99704554]
[1726392300852,0.03117267,2419.6,2419.5,14.82527715]
[1726392301062,0.03117267,2419.6,2419.5,14.25434083]
[1726392301355,0.03117267,2419.6,2419.5,16.99712447]
[1726392301565,0.03117267,2419.6,2419.5,14.82528341]
[1726392302613,0.03117267,2419.6,2419.5,16.99714832]
[1726392302845,0.03117267,2419.6,2419.5,14.82528341]
[1726392303239,0.03117267,2419.6,2419.5,16.99716954]
[1726392303459,0.03117267,2419.6,2419.5,14.82528341]
[1726392304170,0.03117267,2419.6,2419.5,12.08249977]
[1726392304353,0.03117267,2419.6,2419.5,14.82524187]
[1726392307268,0.03117267,2419.6,2419.5,18.41733456]
[1726392307477,0.03117267,2419.6,2419.5,15.67459246]
[1726392307793,0.03117267,2419.6,2419.5,15.05268798]
[1726392307966,0.03117267,2419.6,2419.5,15.67470254]
[1726392308137,0.03117267,2419.6,2419.5,15.05268537]
[1726392308739,0.03117267,2419.6,2419.5,15.05266354]
[1726392311087,0.03117267,2419.6,2419.5,15.05267511]
[1726392314521,0.03117267,2419.6,2419.5,15.0526815]
[1726392317331,0.03117267,2419.6,2419.5,15.69958716]
[1726392317837,0.03117267,2419.6,2419.5,14.74557231]
[1726392318011,0.03117267,2419.6,2419.5,15.05266826]
[1726392318332,0.03117267,2419.6,2419.5,15.34181968]
[1726392318558,0.03117267,2419.6,2419.5,15.69956812]
[1726392319133,0.03117267,2419.6,2419.5,15.69955337]
[1726392319444,0.03117267,2419.6,2419.5,15.05265678]
[1726392319650,0.03117267,2419.6,2419.5,15.69954919]
[1726392319855,0.03117267,2419.6,2419.5,15.05265592]
[1726392320163,0.03117267,2419.6,2419.5,15.69954919]
[1726392320361,0.03117267,2419.6,2419.5,15.05265592]
[1726392321255,0.03117267,2419.6,2419.5,15.05266777]
[1726392323863,0.03117267,2419.6,2419.5,13.50242604]
[1726392324051,0.03117267,2419.6,2419.5,15.05267326]
[1726392328732,0.03117267,2419.6,2419.5,13.50242604]
[1726392329068,0.03117267,2419.6,2419.5,14.45642529]
[1726392329373,0.03117267,2419.6,2419.5,15.05267482]
[1726392331091,0.03117267,2419.6,2419.5,15.69957732]
[1726392331271,0.03117267,2419.6,2419.5,15.79032604]
[1726392331469,0.03117267,2419.6,2419.5,17.98744807]
[1726392331984,0.03117267,2419.6,2419.5,15.79032604]
[1726392332178,0.03117267,2419.6,2419.5,17.98743401]
[1726392332386,0.03117267,2419.6,2419.5,19.53764499]
[1726392332882,0.03117267,2419.6,2419.5,20.18452649]
[1726392333255,0.03117267,2419.6,2419.5,19.53764499]
[1726392334063,0.03117267,2419.6,2419.5,17.98742411]
[1726392335061,0.03117267,2419.6,2419.5,17.34053702]
[1726392335360,0.03117267,2419.6,2419.5,15.79032604]
[1726392335578,0.03117267,2419.6,2419.5,16.3865667]
[1726392335792,0.03117267,2419.6,2419.5,17.34055176]
[1726392336209,0.03117267,2419.6,2419.5,19.94835092]
[1726392336415,0.03117267,2419.6,2419.5,17.34055176]
[1726392336575,0.03117267,2419.6,2419.5,21.47363176]
[1726392336911,0.03117267,2419.6,2419.5,24.08143092]
[1726392337272,0.03117267,2419.6,2419.5,21.47363176]
[1726392338770,0.03117267,2419.6,2419.5,23.81483537]
[1726392338967,0.03117267,2419.6,2419.5,22.52920281]
[1726392339193,0.03117267,2419.6,2419.5,23.4831721]
[1726392339410,0.03117267,2419.6,2419.5,22.52920281]
[1726392339675,0.03117267,2419.6,2419.5,24.07940313]
[1726392340076,0.03117267,2419.6,2419.5,25.03337173]
[1726392341003,0.03117267,2419.6,2419.5,20.90029173]
[1726392341239,0.03117267,2419.6,2419.5,16.00484835]
[1726392344142,0.03117267,2419.6,2419.5,15.05087975]
[1726392346264,0.03117267,2419.6,2419.5,15.05091027]
[1726392349872,0.03117267,2419.6,2419.5,13.50067943]
[1726392350155,0.03117267,2419.6,2419.5,15.05091256]
[1726392355685,0.03117267,2419.6,2419.5,19.18399256]
[1726392355978,0.03117267,2419.6,2419.5,15.05091256]
[1726392356212,0.03117267,2419.6,2419.5,19.18399256]
[1726392356813,0.03117267,2419.6,2419.5,15.05091256]
[1726392357170,0.03117267,2419.6,2419.5,14.454656]
[1726392357515,0.03117267,2419.6,2419.5,15.05089136]
[1726392361231,0.03117267,2419.6,2419.5,14.09691446]
[1726392361433,0.03117267,2419.6,2419.5,15.05089052]
[1726392363136,0.03117267,2419.6,2419.5,15.05089564]
[1726392366598,0.03117267,2419.6,2419.5,13.50067943]
[1726392366798,0.03117267,2419.6,2419.5,14.09692944]
[1726392367225,0.03117267,2419.6,2419.5,15.05092946]
[1726392370629,0.03117267,2419.6,2419.5,13.50067943]
[1726392370941,0.03117267,2419.6,2419.5,15.0509449]
[1726392372131,0.03117267,2419.6,2419.5,13.08101863]
[1726392372340,0.03117267,2419.6,2419.5,3.11885553]
[1726392372341,2.38797267,2419.6,2419.5,3.11885553]
[1726392372512,2.38797267,2419.6,2419.5,5.94793863]
[1726392372700,2.38797267,2419.6,2419.5,7.68646797]
[1726392372900,2.38797267,2419.6,2419.5,5.94793863]
[1726392373139,2.38797267,2419.6,2419.5,7.25140723]
[1726392373554,2.38797267,2419.6,2419.5,5.70114176]
[1726392373914,2.38797267,2419.6,2419.5,7.25154851]
[1726392375447,2.38797267,2419.6,2419.5,6.29745205]
[1726392376037,2.38797267,2419.6,2419.5,4.99398345]
[1726392376244,2.38797267,2419.6,2419.5,5.86249638]
[1726392376958,2.38797267,2419.6,2419.5,4.99398345]
[1726392377140,2.38797267,2419.6,2419.5,5.86238021]
[1726392377338,2.38797267,2419.6,2419.5,5.86237134]
[1726392379454,2.38797267,2419.6,2419.5,4.99398345]
[1726392379638,2.38797267,2419.6,2419.5,5.86237134]
[1726392380337,2.38797267,2419.6,2419.5,4.98360824]
[1726392382174,2.38797267,2419.6,2419.5,4.39767316]
[1726392386570,2.62676994,2419.6,2419.5,0.26459316]
[1726392386806,2.62676994,2419.6,2419.4,1.41992627]
[1726392386948,2.62676994,2419.6,2419.5,0.26476148]
[1726392395480,2.38797267,2419.6,2419.5,0.26476148]
[1726392399483,2.38797267,2419.6,2419.5,1.68468775]
[1726392420465,2.38797267,2419.6,2419.5,0.26476148]
[1726392420824,2.38797267,2419.6,2419.4,1.41992627]
[1726392420825,2.38797267,2419.6,2419.4,2.28831416]
[1726392421027,2.38797267,2419.6,2419.5,0.26480528]
[1726392421225,2.62676994,2419.6,2419.5,0.26480528]
[1726392423939,2.38797267,2419.6,2419.5,0.26480528]
[1726392428470,2.38797267,2419.6,2419.5,0.85078587]
[1726392428655,2.38797267,2419.6,2419.5,0.85078713]
[1726392428855,2.38797267,2419.6,2419.5,0.26480528]
[1726392430352,2.38797267,2419.6,2419.5,0.85079156]
[1726392431050,2.38797267,2419.6,2419.5,0.26480528]
[1726392440988,0.03117267,2419.6,2419.5,0.26480528]
[1726392441640,0.03117267,2419.6,2419.5,1.13319317]
[1726392443655,0.03117267,2419.6,2419.5,0.26480528]
[1726392444158,0.03117267,2419.6,2419.5,1.13319317]
[1726392449441,0.03117267,2419.6,2419.5,0.26480528]
[1726392451046,0.03117267,2419.6,2419.5,1.13319317]
[1726392451682,0.03117267,2419.6,2419.5,0.26480528]
[1726392451882,0.03117267,2419.6,2419.5,1.13319317]
[1726392463866,0.03117267,2419.6,2419.5,5.26627317]
[1726392467870,0.03117267,2419.6,2419.5,1.13319317]
[1726392468814,0.03117267,2419.6,2419.5,2.22898576]
[1726392469769,0.03117267,2419.6,2419.5,1.36059787]
[1726392470475,0.03117267,2419.6,2419.5,2.22898576]
[1726392471518,0.03117267,2419.6,2419.5,1.36059787]
[1726392471716,0.03117267,2419.6,2419.5,0.26480528]
[1726392472013,0.03117267,2419.6,2419.5,1.36061399]
[1726392472312,0.03117267,2419.6,2419.5,1.3606177]
[1726392481125,0.03117267,2419.6,2419.5,0.26480528]
[1726392481895,0.03117267,2419.6,2419.5,2.03497354]
[1726392482297,0.03117267,2419.6,2419.5,2.45644344]
[1726392482519,0.03117267,2419.6,2419.5,3.32483133]
[1726392484079,0.03117267,2419.6,2419.5,2.65047949]
[1726392484283,0.03117267,2419.6,2419.5,2.90334322]
[1726392484523,0.03117267,2419.6,2419.5,3.32480174]
[1726392485119,0.03117267,2419.6,2419.5,2.22898532]
[1726392487628,0.03117267,2419.6,2419.5,1.8075268]
[1726392487853,0.03117267,2419.6,2419.5,1.13319317]
[1726392488043,0.03117267,2419.6,2419.5,2.22899025]
[1726392491523,0.03117267,2419.6,2419.5,1.13319317]
[1726392491728,0.03117267,2419.6,2419.5,2.81496881]
[1726392491916,2.33027267,2419.6,2419.5,2.81496881]
[1726392492111,2.33027267,2419.6,2419.5,3.48930776]
[1726392492317,2.56329994,2419.6,2419.5,2.62091987]
[1726392492549,2.56329994,2419.6,2419.5,1.78206694]
[1726392492728,2.56329994,2419.6,2419.5,2.45644322]
[1726392492927,2.56329994,2419.6,2419.5,1.78206694]
[1726392494517,2.56329994,2419.6,2419.5,1.3606051]
[1726392494720,2.56329994,2419.6,2419.5,1.78209596]
[1726392495131,2.56329994,2419.6,2419.5,1.10775761]
[1726392495355,2.56329994,2419.6,2419.5,0.68629614]
[1726392497685,2.56329994,2419.6,2419.5,0.26480528]
[1726392497835,2.56329994,2419.6,2419.3,1.45441233]
[1726392498042,2.33027267,2419.6,2419.5,0.42148903]
[1726392498347,2.33027267,2419.6,2419.5,0.68394308]
[1726392498348,0.03117267,2419.6,2419.5,0.68394308]
[1726392499638,0.03117267,2419.6,2419.5,1.35827752]
[1726392500551,0.03117267,2419.6,2419.5,1.35828489]
[1726392501134,0.03117267,2419.6,2419.5,0.26245405]
[1726392501337,0.03117267,2419.6,2419.5,0.68391577]
[1726392501566,0.03117267,2419.6,2419.5,1.35825453]
[1726392502045,0.03117267,2419.6,2419.5,1.35825515]
[1726392502255,0.03117267,2419.6,2419.5,2.032593]
[1726392503164,0.03117267,2419.6,2419.5,1.35825975]
[1726392504298,0.03117267,2419.6,2419.5,0.26245405]
[1726392504467,0.03117267,2419.6,2419.5,1.35826501]
[1726392505496,0.03117267,2419.6,2419.5,0.6839198]
[1726392505795,0.03117267,2419.6,2419.5,1.35825324]
[1726392505979,0.03117267,2419.6,2419.5,0.6839198]
[1726392506185,0.03117267,2419.6,2419.5,1.35825311]
[1726392507995,0.03117267,2419.6,2419.5,0.26245405]
[1726392508459,0.03117267,2419.6,2419.5,1.35824612]
[1726392508800,0.03117267,2419.6,2419.5,0.68391254]
[1726392509969,0.03117267,2419.6,2419.5,1.35825368]
[1726392512278,0.03117267,2419.6,2419.5,0.93679656]
[1726392512916,0.03117267,2419.6,2419.5,0.26245405]
[1726392513210,0.03117267,2419.6,2419.5,0.68391718]
[1726392513520,2.44767267,2419.6,2419.5,0.68391718]
[1726392513809,2.44767267,2419.6,2419.5,1.3582582]
[1726392514065,2.44767267,2419.6,2419.5,0.68391718]
[1726392514714,2.8226232,2419.6,2419.5,0.68391718]
[1726392515412,2.8226232,2419.6,2419.5,0.26245405]
[1726392515778,2.8226232,2419.6,2419.5,0.42149078]
[1726392515985,2.8226232,2419.6,2419.5,0.26242405]
[1726392516922,2.8226232,2419.6,2419.1,6.42194416]
[1726392517131,2.8226232,2419.6,2419.5,0.26242405]
[1726392517278,2.8226232,2419.6,2419.5,0.42149613]
[1726392517478,2.8226232,2419.6,2419.5,0.68392018]
[1726392521321,2.8226232,2419.6,2419.5,0.26242405]
[1726392521658,2.8226232,2419.6,2419.3,1.41992627]
[1726392521857,2.8226232,2419.6,2419.4,0.26254279]
[1726392522066,2.8226232,2419.6,2419.5,0.42148422]
[1726392522352,2.8226232,2419.6,2419.5,0.68390827]
[1726392524649,2.8226232,2419.6,2419.5,0.26242405]
[1726392524847,2.8226232,2419.6,2419.5,0.42148322]
[1726392525267,2.8226232,2419.6,2419.5,0.26244945]
[1726392525487,2.8226232,2419.6,2419.5,0.42148603]
[1726392525692,2.8226232,2419.6,2419.5,0.68393548]
[1726392528463,2.44767267,2419.6,2419.5,0.26244945]
[1726392528659,2.44767267,2419.6,2419.5,0.42147993]
[1726392528866,2.44767267,2419.6,2419.5,0.68392938]
[1726392530690,0.03117267,2419.6,2419.5,2.10385565]
[1726392531869,0.03117267,2419.6,2419.5,4.44725565]
[1726392532187,0.03117267,2419.6,2419.5,4.61174019]
[1726392532397,0.03117267,2419.6,2419.5,6.29348223]
[1726392532566,0.03117267,2419.6,2419.5,5.70752294]
[1726392532748,0.03117267,2419.6,2419.5,5.12155847]
[1726392535355,0.03117267,2419.6,2419.5,4.02577572]
[1726392535554,0.03117267,2419.6,2419.5,4.44722994]
[1726392535768,0.03117267,2419.6,2419.5,5.1215567]
[1726392541508,0.03117267,2419.6,2419.5,4.02577572]
[1726392541963,0.03117267,2419.6,2419.5,5.1215562]
[1726392545712,0.03117267,2419.6,2419.5,4.70010217]
[1726392546012,0.03117267,2419.6,2419.5,4.02577572]
[1726392550777,0.03117267,2419.6,2419.5,1.68237572]
[1726392553308,0.03117267,2419.6,2419.5,0.26244945]
[1726392553618,0.03117267,2419.6,2419.3,8.73206416]
[1726392553819,0.03117267,2419.6,2419.5,0.26241485]
[1726392554020,0.03117267,2419.6,2419.4,0.26253359]
[1726392554185,0.03117267,2419.6,2419.5,0.26241485]
[1726392554877,0.03117267,2419.6,2419.3,8.73206416]
[1726392555081,0.03117267,2419.6,2419.4,0.26253359]
[1726392555907,2.3324,2419.5,2419.4,0.26253359]
[1726392559419,2.56875727,2419.5,2419.4,0.26253359]
[1726392559797,2.56875727,2419.5,2419.2,1.41992627]
[1726392559998,2.56875727,2419.5,2419.4,0.26255896]
[1726392560229,2.56875727,2419.5,2419.3,0.2626777]
[1726392560408,2.56875727,2419.5,2419.4,0.26255896]
[1726392560587,2.3324,2419.5,2419.4,0.26255896]
[1726392560791,2.3324,2419.5,2419.2,1.41992627]
[1726392561013,2.3324,2419.5,2419.4,0.26255896]
[1726392561524,2.3324,2419.5,2419.2,1.41992627]
[1726392561724,2.3324,2419.5,2419.3,0.2626777]
[1726392592442,2.3324,2419.5,2419.4,1.41992627]
[1726392592873,2.3324,2419.5,2419.4,1.68004495]
[1726392593249,2.3324,2419.5,2419.4,0.26011868]
[1726392593569,2.3324,2419.5,2419.2,1.41992627]
[1726392593776,2.3324,2419.5,2419.3,0.26023743]
[1726392601408,2.3324,2419.5,2419.3,1.12878137]
[1726392604277,0.03117267,2419.6,2419.5,2.4555]
[1726392604585,0.03117267,2419.6,2419.5,6.58858]
[1726392604771,0.03117267,2419.6,2419.5,12.17619137]
[1726392605175,0.03117267,2419.6,2419.5,8.47738334]
[1726392605379,0.03117267,2419.6,2419.5,8.04348745]
[1726392605692,0.03117267,2419.6,2419.5,13.63063499]
[1726392605894,0.03117267,2419.6,2419.5,14.06490696]
[1726392606197,0.03117267,2419.6,2419.5,13.12731501]
[1726392606490,0.03117267,2419.6,2419.5,14.06477711]
[1726392607155,0.03117267,2419.6,2419.5,14.06478506]
[1726392607352,0.03117267,2419.6,2419.5,13.62973589]
[1726392608278,0.03117267,2419.6,2419.5,11.3902068]
[1726392609493,0.03117267,2419.6,2419.5,12.69148212]
[1726392612199,0.03117267,2419.6,2419.5,12.25739027]
[1726392614596,0.03117267,2419.6,2419.5,11.3902068]
[1726392615382,0.03117267,2419.6,2419.5,10.80431332]
[1726392615953,0.03117267,2419.6,2419.5,11.67149679]
[1726392616157,0.03117267,2419.6,2419.5,12.25739777]
[1726392616357,0.03117267,2419.6,2419.5,10.80431332]
[1726392617764,0.03117267,2419.6,2419.5,11.06407112]
[1726392619231,0.03117267,2419.6,2419.5,0.2597578]
[1726392619397,0.03117267,2419.6,2419.5,1.67968407]
[1726392620394,0.03117267,2419.6,2419.5,5.81276407]
[1726392636121,0.03117267,2419.6,2419.5,5.82695219]
[1726392639635,0.03117267,2419.6,2419.5,6.41286048]
[1726392639925,0.03117267,2419.6,2419.5,11.41312431]
[1726392640523,0.03117267,2419.6,2419.5,10.82721566]
[1726392640724,0.03117267,2419.6,2419.5,11.41312431]
[1726392640889,0.03117267,2419.6,2419.5,13.80852431]
[1726392643286,0.03117267,2419.6,2419.5,13.80852029]
[1726392643803,0.03117267,2419.6,2419.5,13.22261566]
[1726392644191,0.03117267,2419.6,2419.5,14.3944187]
[1726392644701,0.03117267,2419.6,2419.5,13.80851734]
[1726392644907,0.03117267,2419.6,2419.5,14.3944177]
[1726392645093,0.03117267,2419.6,2419.5,11.9990177]
[1726392645290,0.03117267,2419.6,2419.5,7.8659377]
[1726392646600,0.03117267,2419.6,2419.5,7.28003602]
[1726392648512,0.03117267,2419.6,2419.5,6.69413566]
[1726392648720,0.03117267,2419.6,2419.5,7.28006234]
[1726392649510,0.03117267,2419.6,2419.5,6.41287887]
[1726392649700,0.03117267,2419.6,2419.5,7.71415419]
[1726392650625,0.03117267,2419.6,2419.5,7.12822751]
[1726392650940,0.03117267,2419.6,2419.5,6.41287943]
[1726392651427,0.03117267,2419.6,2419.5,7.71415475]
[1726392652226,0.03117267,2419.6,2419.5,8.65163623]
[1726392652427,0.03117267,2419.6,2419.5,8.65163046]
[1726392653528,0.03117267,2419.6,2419.5,12.78471046]
[1726392653888,0.03117267,2419.6,2419.5,13.22052302]
[1726392654293,0.03117267,2419.6,2419.5,13.22043972]
[1726392654822,0.03117267,2419.6,2419.5,13.22048426]
[1726392660915,0.03117267,2419.6,2419.5,11.69712007]
[1726392661116,0.03117267,2419.6,2419.5,13.2204445]
[1726392663947,0.03117267,2419.6,2419.5,9.96003219]
[1726392664101,0.03117267,2419.6,2419.5,11.4833808]
[1726392664449,0.03117267,2419.6,2419.5,9.96003219]
[1726392664745,0.03117267,2419.6,2419.5,11.48338624]
[1726392665247,0.03117267,2419.6,2419.5,10.80287428]
[1726392665405,0.03117267,2419.6,2419.5,14.06331979]
[1726392666123,0.03117267,2419.6,2419.5,12.32623191]
[1726392666629,0.03117267,2419.6,2419.5,13.6297344]
[1726392667017,0.03117267,2419.6,2419.5,12.32623191]
[1726392667213,0.03117267,2419.6,2419.5,14.06331979]
[1726392667445,0.03117267,2419.6,2419.5,14.06333239]
[1726392668348,0.03117267,2419.6,2419.5,13.62974644]
[1726392668647,0.03117267,2419.6,2419.5,12.32624451]
[1726392668948,0.03117267,2419.6,2419.5,13.62973722]
[1726392672652,0.03117267,2419.6,2419.5,12.32624451]
[1726392673015,0.03117267,2419.6,2419.5,13.62977206]
[1726392675050,0.03117267,2419.6,2419.5,12.10640183]
[1726392675239,0.03117267,2419.6,2419.5,12.78695642]
[1726392675565,0.03117267,2419.6,2419.5,12.78695916]
[1726392675736,0.03117267,2419.6,2419.5,9.49673414]
[1726392675926,0.03117267,2419.6,2419.5,10.33958968]
[1726392676122,0.03117267,2419.6,2419.5,10.33959842]
[1726392676527,0.03117267,2419.6,2419.5,10.33959935]
[1726392676728,0.03117267,2419.6,2419.5,9.49674437]
[1726392678576,0.03117267,2419.6,2419.5,7.13047974]
[1726392678741,0.03117267,2419.6,2419.5,8.65387517]
[1726392679265,0.03117267,2419.6,2419.5,9.49673005]
[1726392679775,0.03117267,2419.6,2419.5,13.62981005]
[1726392680076,0.03117267,2419.6,2419.5,12.3262825]
[1726392680868,0.03117267,2419.6,2419.5,16.53787038]
[1726392682269,0.03117267,2419.6,2419.5,14.75752419]
[1726392682569,0.03117267,2419.6,2419.5,15.69497078]
[1726392682934,0.03117267,2419.6,2419.5,16.53780438]
[1726392685591,0.03117267,2419.6,2419.5,16.97329525]
[1726392685942,0.03117267,2419.6,2419.5,13.27736579]
[1726392686187,0.03117267,2419.6,2419.5,13.95782955]
[1726392686341,0.03117267,2419.6,2419.5,16.1304083]
[1726392686692,0.03117267,2419.6,2419.5,14.17234212]
[1726392686846,0.03117267,2419.6,2419.5,15.69566741]
[1726392687158,0.03117267,2419.6,2419.5,16.53848997]
[1726392687353,0.03117267,2419.6,2419.5,14.80068004]
[1726392687684,0.03117267,2419.6,2419.5,16.53836666]
[1726392689849,0.03117267,2419.6,2419.5,14.17223844]
[1726392690163,0.03117267,2419.6,2419.5,16.53838165]
[1726392691568,0.03117267,2419.6,2419.5,17.08838165]
[1726392692098,0.03117267,2419.6,2419.5,15.3506754]
[1726392692469,0.03117267,2419.6,2419.5,17.08826321]
[1726392692793,0.03117267,2419.6,2419.5,17.08825422]
[1726392692983,0.03117267,2419.6,2419.5,17.08825877]
[1726392693302,0.03117267,2419.6,2419.5,17.08825323]
[1726392693465,0.03117267,2419.6,2419.5,17.08824116]
[1726392693673,0.03117267,2419.6,2419.5,17.0882414]
[1726392696091,0.03117267,2419.6,2419.5,21.2213214]
[1726392696294,0.03117267,2419.6,2419.5,19.48373803]
[1726392696503,0.03117267,2419.6,2419.5,20.13237419]
[1726392696802,0.03117267,2419.6,2419.5,22.87543966]
[1726392696994,0.03117267,2419.6,2419.5,23.13236511]
[1726392697198,0.03117267,2419.6,2419.5,22.28955751]
[1726392697389,0.03117267,2419.6,2419.5,23.22695777]
[1726392697582,0.03117267,2419.6,2419.5,23.71823042]
[1726392697787,0.03117267,2419.6,2419.5,25.24146145]
[1726392698414,0.03117267,2419.6,2419.5,26.08375792]
[1726392700175,0.03117267,2419.6,2419.5,23.91229533]
[1726392700509,0.03117267,2419.6,2419.5,27.91229533]
[1726392700714,0.03117267,2419.6,2419.5,27.91226811]
[1726392702013,0.03117267,2419.6,2419.5,23.91226811]
[1726392704194,0.03117267,2419.6,2419.5,23.91226366]
[1726392704583,0.03117267,2419.6,2419.5,26.08273055]
[1726392704796,0.03117267,2419.6,2419.5,23.91226366]
[1726392706180,0.03117267,2419.6,2419.5,26.08258649]
[1726392706972,0.03117267,2419.6,2419.5,23.91226366]
[1726392707195,0.03117267,2419.6,2419.5,22.48359075]
[1726392707673,0.03117267,2419.6,2419.5,27.81088249]
[1726392707991,0.03117267,2419.6,2419.5,25.54621751]
[1726392708173,0.03117267,2419.6,2419.5,20.11761219]
[1726392708492,0.03117267,2419.6,2419.5,24.65354521]
[1726392708698,0.03117267,2419.6,2419.5,22.48357253]
[1726392709013,0.03117267,2419.6,2419.5,24.65348076]
[1726392710710,0.03117267,2419.6,2419.5,22.48357253]
[1726392710872,0.03117267,2419.6,2419.5,24.65338434]
[1726392711303,0.03117267,2419.6,2419.5,28.65338434]
[1726392712827,0.03117267,2419.6,2419.5,24.65338434]
[1726392713996,0.03117267,2419.6,2419.5,24.65325414]
[1726392715015,0.03117267,2419.6,2419.5,23.13005781]
[1726392715231,0.03117267,2419.6,2419.5,23.13006217]
[1726392715433,0.03117267,2419.6,2419.5,24.6532651]
[1726392715733,0.03117267,2419.6,2419.5,24.65324637]
[1726392718516,0.03117267,2419.6,2419.5,26.28727507]
[1726392718710,0.03117267,2419.6,2419.5,28.65324407]
[1726392718924,0.03117267,2419.6,2419.5,27.71588913]
[1726392719103,0.03117267,2419.6,2419.5,27.8104765]
[1726392720499,0.03117267,2419.6,2419.5,27.81067897]
[1726392721108,0.03117267,2419.6,2419.5,26.28747754]
[1726392721502,0.03117267,2419.6,2419.5,27.81067923]
[1726392722455,0.03117267,2419.6,2419.5,27.81069541]
[1726392723145,0.03117267,2419.6,2419.5,28.22469678]
[1726392723504,0.03117267,2419.6,2419.5,26.05481525]
[1726392723707,0.03117267,2419.6,2419.5,28.22499887]
[1726392724006,0.03117267,2419.6,2419.5,26.05481525]
[1726392724216,0.03117267,2419.6,2419.5,28.22500305]
[1726392724447,0.03117267,2419.6,2419.5,26.05481525]
[1726392725118,0.03117267,2419.6,2419.5,26.70169298]
[1726392726124,0.03117267,2419.6,2419.5,26.28769161]
[1726392726505,0.03117267,2419.6,2419.5,17.6178645]
[1726392727936,0.03117267,2419.6,2419.5,15.68065983]
[1726392728250,0.03117267,2419.6,2419.5,16.68054466]
[1726392728425,0.03117267,2419.6,2419.5,17.61793455]
[1726392728619,0.03117267,2419.6,2419.5,17.61793589]
[1726392728809,0.03117267,2419.6,2419.5,15.44730825]
[1726392729011,0.03117267,2419.6,2419.5,17.61825317]
[1726392729215,0.03117267,2419.6,2419.5,16.09499691]
[1726392729429,0.03117267,2419.6,2419.5,17.61824518]
[1726392731560,0.03117267,2419.6,2419.5,17.2042285]
[1726392731712,0.03117267,2419.6,2419.5,17.61824544]
[1726392732551,0.03117267,2419.6,2419.5,17.61858829]
[1726392732759,0.03117267,2419.6,2419.5,17.61857685]
[1726392732962,0.03117267,2419.6,2419.5,15.44728908]
[1726392734817,0.03117267,2419.6,2419.5,13.51003219]
[1726392735130,0.03117267,2419.6,2419.5,15.03327344]
[1726392735324,0.03117267,2419.6,2419.5,15.44728864]
[1726392736230,0.03117267,2419.6,2419.5,16.61901264]
[1726392737125,0.03117267,2419.6,2419.5,16.20499744]
[1726392738775,0.03117267,2419.6,2419.5,15.03328005]
[1726392738930,0.03117267,2419.6,2419.5,16.20500918]
[1726392745095,0.03117267,2419.6,2419.5,20.33808918]
[1726392745383,0.03117267,2419.6,2419.5,20.33806832]
[1726392747108,0.03117267,2419.6,2419.5,20.98496816]
[1726392747772,0.03117267,2419.6,2419.5,20.33806832]
[1726392748502,0.03117267,2419.6,2419.5,17.64311219]
[1726392748702,0.03117267,2419.6,2419.5,20.33805361]
[1726392748910,0.03117267,2419.6,2419.5,18.22896902]
[1726392749210,0.03117267,2419.6,2419.5,20.33805443]
[1726392749768,0.03117267,2419.6,2419.5,14.78504816]
[1726392750018,0.03117267,2419.6,2419.5,15.65497443]
[1726392753426,2.50557267,2419.6,2419.5,8.10315592]
[1726392753585,2.50557267,2419.6,2419.5,9.08862153]
[1726392753784,2.75612994,2419.6,2419.5,8.65402437]
[1726392754219,2.75612994,2419.6,2419.5,3.58357316]
[1726392754387,2.75612994,2419.6,2419.5,2.16364689]
[1726392754584,6.88903994,2419.6,2419.5,0.27394592]
[1726392754832,2.4744,2419.5,2419.4,0.00976502]
[1726392755052,3.29327761,2419.5,2419.4,0.00976502]
[1726392760132,11.55943761,2419.5,2419.4,0.00976502]
[1726392769964,7.42635761,2419.5,2419.4,0.00976502]
[1726392778497,7.42635761,2419.5,2419.4,0.25269155]
[1726392786754,3.29327761,2419.5,2419.4,0.25269155]
[1726392790125,0.28172994,2419.6,2419.4,0.25269155]
[1726392790335,0.03117267,2419.6,2419.5,1.41992627]
[1726392790689,0.03117267,2419.6,2419.5,5.79571491]
[1726392790946,0.03117267,2419.6,2419.5,9.92879491]
[1726392791122,0.03117267,2419.6,2419.5,12.26879491]
[1726392800810,0.03117267,2419.6,2419.5,13.72400703]
[1726392801040,0.03117267,2419.6,2419.5,12.26879491]
[1726392828335,0.03117267,2419.6,2419.5,13.13810359]
[1726392829176,0.03117267,2419.6,2419.5,12.26879491]
[1726392829345,0.03117267,2419.6,2419.5,13.13810359]
[1726392829536,0.03117267,2419.6,2419.5,12.26879491]
[1726392830369,0.03117267,2419.6,2419.5,13.72403155]
[1726392831639,0.03117267,2419.6,2419.5,5.83102528]
[1726392831836,0.03117267,2419.6,2419.5,6.38164287]
[1726392832179,0.03117267,2419.6,2419.5,6.66502359]
[1726392832475,0.03117267,2419.6,2419.5,7.25096534]
[1726392832641,0.03117267,2419.6,2419.5,6.66502359]
[1726392832844,0.03117267,2419.6,2419.5,7.25095406]
[1726392835357,0.03117267,2419.6,2419.5,7.68548934]
[1726392835682,0.03117267,2419.6,2419.5,7.68549598]
[1726392836271,0.03117267,2419.6,2419.5,6.38165202]
[1726392838929,0.03117267,2419.6,2419.5,5.79571491]
[1726392839134,0.03117267,2419.6,2419.5,9.92879491]
[1726392839429,0.03117267,2419.6,2419.5,8.1200923]
[1726392840633,0.03117267,2419.6,2419.5,16.3706932]
[1726392842292,0.03117267,2419.6,2419.5,15.19882065]
[1726392842617,0.03117267,2419.6,2419.5,16.00911915]
[1726392844868,0.03117267,2419.6,2419.5,15.42318288]
[1726392845010,0.03117267,2419.6,2419.5,15.19876983]
[1726392845208,0.03117267,2419.6,2419.5,16.00906884]
[1726392848295,0.03117267,2419.6,2419.5,16.00803758]
[1726392850211,0.03117267,2419.6,2419.5,16.94544222]
[1726392850412,0.03117267,2419.6,2419.5,17.35058734]
[1726392851751,0.03117267,2419.6,2419.5,13.31614117]
[1726392851917,0.03117267,2419.6,2419.5,12.60351196]
[1726392852120,0.03117267,2419.6,2419.5,13.77527862]
[1726392852303,0.03117267,2419.6,2419.5,14.99072792]
[1726392852507,0.03117267,2419.6,2419.5,15.39587921]
[1726392855237,0.03117267,2419.6,2419.5,15.39588462]
[1726392858368,0.03117267,2419.6,2419.5,13.59456954]
[1726392858520,0.03117267,2419.6,2419.5,11.66610532]
[1726392858729,0.03117267,2419.6,2419.5,13.18941771]
[1726392858927,0.03117267,2419.6,2419.5,13.59456909]